bitfinex/quotes_ETHUSD_20251004
["timestamp","ask_amount","ask_price","bid_price","bid_amount"]
[1759573424478,0.012,4497.9,4497.8,40.28480548]
[1759573424665,0.012,4497.9,4497.8,55.70428148]
[1759573434599,0.002,4498.4,4498.3,3.0336]
[1759573434787,0.002,4498.4,4498.3,37.86786204]
[1759573435367,0.002,4498.4,4498.3,38.31706204]
[1759573435787,0.002,4498.4,4498.3,38.60279249]
[1759573440016,0.002,4498.8,4498.7,2.85646438]
[1759573440321,0.002,4498.8,4498.7,30.23045182]
[1759573440489,0.002,4498.8,4498.7,50.14211082]
[1759573440689,0.002,4498.8,4498.7,50.25331082]
[1759573441312,0.002,4498.8,4498.7,48.25299582]
[1759573442192,0.002,4498.8,4498.7,50.25331082]
[1759573442686,0.002,4498.8,4498.7,49.03497182]
[1759573443238,0.002,4498.8,4498.7,50.25331082]
[1759573444105,0.002,4498.8,4498.7,51.84531721]
[1759573445303,0.4512,4498.8,4498.7,48.48445921]
[1759573445517,0.4512,4498.8,4498.7,46.55213921]
[1759573446242,0.4512,4498.8,4498.7,48.37569121]
[1759573446443,0.4512,4498.8,4498.7,47.91493621]
[1759573447337,0.4512,4498.8,4498.7,51.30598921]
[1759573448144,0.4512,4498.8,4498.7,50.72155421]
[1759573448305,0.4512,4498.8,4498.7,51.84531721]
[1759573448727,0.4512,4498.8,4498.7,30.82234921]
[1759573449043,0.4512,4498.8,4498.7,29.51607327]
[1759573449257,0.002,4498.8,4498.7,37.57264866]
[1759573450259,0.002,4498.8,4498.7,45.83995766]
[1759573451331,0.002,4498.8,4498.7,48.15873766]
[1759573451726,0.002,4498.8,4498.7,45.40972266]
[1759573452334,0.002,4498.8,4498.7,47.37117466]
[1759573452540,0.002,4498.8,4498.7,47.14654366]
[1759573453410,0.002,4498.8,4498.7,44.35889766]
[1759573454458,0.002,4498.8,4498.7,47.26086466]
[1759573455237,0.002,4498.8,4498.7,45.66885827]
[1759573455425,0.002,4498.8,4498.7,44.44524927]
[1759573455746,0.002,4498.8,4498.7,45.23805131]
[1759573456355,0.002,4498.8,4498.7,46.84730431]
[1759573456766,0.002,4498.8,4498.7,45.01110427]
[1759573456915,0.002,4498.8,4498.7,42.45001827]
[1759573457255,0.002,4498.8,4498.7,40.80575527]
[1759573457462,0.4512,4498.8,4498.7,38.22307112]
[1759573458489,0.4512,4498.8,4498.7,40.32724412]
[1759573458672,0.4512,4498.8,4498.7,40.11192312]
[1759573458884,0.4512,4498.8,4498.7,38.84004112]
[1759573459408,0.4512,4498.8,4498.7,40.71048912]
[1759573459701,0.4512,4498.8,4498.7,40.47052712]
[1759573459868,0.4512,4498.8,4498.7,38.74658012]
[1759573460070,0.4512,4498.8,4498.7,38.16224367]
[1759573460269,0.4512,4498.8,4498.7,36.56946182]
[1759573460494,0.4512,4498.8,4498.7,37.99108882]
[1759573461485,0.4512,4498.8,4498.7,41.40020082]
[1759573461651,0.4512,4498.8,4498.7,39.52131582]
[1759573462150,0.4512,4498.8,4498.7,39.28135182]
[1759573462350,0.4512,4498.8,4498.7,20.25331082]
[1759573462583,0.4512,4498.8,4498.7,37.39436782]
[1759573463286,0.4512,4498.8,4498.7,34.28784482]
[1759573463454,0.4512,4498.8,4498.7,36.23904882]
[1759573464388,0.4512,4498.8,4498.7,20.25331082]
[1759573464603,0.4512,4498.8,4498.7,37.58691382]
[1759573465453,0.4512,4498.8,4498.7,39.37997982]
[1759573465878,0.4512,4498.8,4498.7,38.39948982]
[1759573466500,0.4512,4498.8,4498.7,38.03145182]
[1759573467565,0.4512,4498.8,4498.7,39.58073682]
[1759573468096,0.4512,4498.8,4498.7,39.86646727]
[1759573468598,0.4512,4498.8,4498.7,39.72278027]
[1759573469594,0.4512,4498.8,4498.7,39.84172527]
[1759573469799,0.4512,4498.8,4498.7,38.49082727]
[1759573470174,0.002,4498.8,4498.7,38.49082727]
[1759573470697,0.002,4498.8,4498.7,38.74722127]
[1759573471794,0.002,4498.8,4498.7,40.19146327]
[1759573472568,0.002,4498.8,4498.7,40.46378927]
[1759573473683,0.002,4498.8,4498.7,40.46963927]
[1759573474004,0.002,4498.8,4498.7,40.02619327]
[1759573474608,0.002,4498.8,4498.7,42.16959527]
[1759573474906,0.002,4498.8,4498.7,41.85437727]
[1759573475105,0.002,4498.8,4498.7,40.43197227]
[1759573475566,0.002,4498.8,4498.7,20.53804127]
[1759573475768,0.002,4498.8,4498.7,40.31635027]
[1759573475973,0.002,4498.8,4498.7,36.83393927]
[1759573476406,0.002,4498.8,4498.7,36.63103527]
[1759573476608,0.002,4498.8,4498.7,35.35346727]
[1759573476913,0.002,4498.8,4498.7,36.68323427]
[1759573477106,0.002,4498.8,4498.7,35.14835427]
[1759573477308,0.4459,4498.8,4498.7,34.82903527]
[1759573477806,0.4459,4498.8,4498.7,36.06281527]
[1759573478411,0.002,4498.8,4498.7,36.06281527]
[1759573478822,0.002,4498.8,4498.7,39.52985827]
[1759573480020,0.002,4498.8,4498.7,40.48819527]
[1759573480696,0.002,4498.8,4498.7,40.21203227]
[1759573481619,0.002,4498.8,4498.7,38.62793927]
[1759573481917,0.002,4498.8,4498.7,38.73963027]
[1759573482920,0.002,4498.8,4498.7,39.38515727]
[1759573483214,0.002,4498.8,4498.7,39.09224327]
[1759573484002,0.002,4498.8,4498.7,40.95126482]
[1759573484915,0.002,4498.8,4498.7,39.86123782]
[1759573485377,0.002,4498.8,4498.7,38.85611182]
[1759573486013,0.002,4498.8,4498.7,20.25231082]
[1759573486190,0.002,4498.8,4498.7,39.72604282]
[1759573486390,0.002,4498.8,4498.7,39.45811182]
[1759573487006,0.002,4498.8,4498.7,39.07304482]
[1759573487514,0.002,4498.8,4498.7,37.02382082]
[1759573487899,0.002,4498.8,4498.7,35.13324682]
[1759573488105,0.002,4498.8,4498.7,35.48324682]
[1759573488414,0.002,4498.8,4498.7,35.26726082]
[1759573489122,0.002,4498.8,4498.7,38.70737982]
[1759573489788,0.002,4498.8,4498.7,36.68149382]
[1759573490088,0.002,4498.8,4498.7,38.87665182]
[1759573491080,0.002,4498.8,4498.7,47.00032327]
[1759573491284,0.002,4498.8,4498.7,50.15394615]
[1759573491480,0.002,4498.8,4498.7,52.81343371]
[1759573492237,0.002,4498.8,4498.7,55.90275171]
[1759573492413,1.0,4499.0,4498.9,5.25636556]
[1759573492615,1.0,4499.0,4498.9,42.61683559]
[1759573493124,1.0,4499.0,4498.9,57.11683559]
[1759573493722,1.0,4499.0,4498.9,57.78358448]
[1759573494426,1.0,4499.0,4498.9,55.79068676]
[1759573495860,1.0,4499.0,4498.9,52.78963376]
[1759573496387,1.0,4499.0,4498.9,53.26455276]
[1759573497025,1.0,4499.0,4498.9,52.95622976]
[1759573497208,1.0,4499.0,4498.9,52.51127276]
[1759573497400,1.0,4499.0,4498.9,54.20356076]
[1759573498002,1.0,4499.0,4498.9,53.94405776]
[1759573498332,1.0,4499.0,4498.9,54.43177076]
[1759573498693,1.0,4499.0,4498.9,52.71175576]
[1759573499283,1.0,4499.0,4498.9,25.79068676]
[1759573499640,1.0,4499.0,4498.9,55.79068676]
[1759573499799,1.0,4499.0,4498.9,57.78358448]
[1759573500117,1.0,4499.0,4498.9,58.23198448]
[1759573500491,1.0,4499.0,4498.9,57.78358448]
[1759573501503,1.0,4499.0,4498.9,55.79068676]
[1759573502005,1.002,4499.0,4498.9,55.79068676]
[1759573502320,1.002,4499.0,4498.9,57.78358448]
[1759573503227,1.002,4499.0,4498.9,55.79068676]
[1759573507466,1.002,4499.0,4498.9,25.79068676]
[1759573507762,1.002,4499.0,4498.9,56.23908676]
[1759573508165,0.01636965,4499.0,4498.9,58.23198448]
[1759573508372,0.01636965,4499.0,4498.9,57.78358448]
[1759573509272,0.01636965,4499.0,4498.9,55.79068676]
[1759573509971,0.01636965,4499.0,4498.9,57.78358448]
[1759573512036,0.01636965,4499.0,4498.9,58.23198448]
[1759573513649,0.01636965,4499.0,4498.9,57.78358448]
[1759573514064,0.01636965,4499.0,4498.9,57.4783616]
[1759573514585,0.01636965,4499.0,4498.9,27.4783616]
[1759573514787,0.01636965,4499.0,4498.9,57.4783616]
[1759573515566,0.01636965,4499.0,4498.9,27.4783616]
[1759573515767,0.01636965,4499.0,4498.9,57.4783616]
[1759573517362,0.01636965,4499.0,4498.9,55.48546388]
[1759573517580,0.01636965,4499.0,4498.9,25.48546388]
[1759573517786,0.01636965,4499.0,4498.9,55.48546388]
[1759573518085,0.00041347,4499.0,4498.9,55.48546388]
[1759573518417,0.01,4499.9,4499.8,2.85592099]
[1759573518693,0.01,4499.9,4499.8,13.41836399]
[1759573518856,0.01,4499.9,4499.8,12.26952099]
[1759573519054,0.01,4499.9,4499.8,26.76952099]
[1759573519748,0.01,4499.9,4499.8,26.76750899]
[1759573519961,0.01,4499.9,4499.8,25.70482699]
[1759573520183,0.01,4499.9,4499.8,25.62097864]
[1759573520397,0.4393,4499.9,4499.8,20.28835065]
[1759573520602,0.4393,4499.9,4499.8,24.78829062]
[1759573520903,0.4393,4499.9,4499.8,25.82691462]
[1759573521398,0.4413,4499.9,4499.8,25.82691462]
[1759573521764,0.4413,4499.9,4499.8,30.07415162]
[1759573521963,0.4413,4499.9,4499.8,28.57614962]
[1759573522763,0.4413,4499.9,4499.8,29.70305562]
[1759573522974,0.4413,4499.9,4499.8,29.40962962]
[1759573523886,0.4413,4499.9,4499.8,29.28004362]
[1759573524395,0.4413,4499.9,4499.8,29.03622462]
[1759573524752,0.4413,4499.9,4499.8,31.15160862]
[1759573525995,0.4413,4499.9,4499.8,31.26769762]
[1759573526613,0.4413,4499.9,4499.8,30.88680362]
[1759573526766,0.4413,4499.9,4499.8,31.43099262]
[1759573526967,0.4413,4499.9,4499.8,31.16973362]
[1759573527172,0.4413,4499.9,4499.8,32.54638351]
[1759573527903,0.4413,4499.9,4499.8,24.28888651]
[1759573528113,0.4413,4499.9,4499.8,32.54404251]
[1759573528903,0.4413,4499.9,4499.8,24.28888651]
[1759573529219,0.4413,4499.9,4499.8,30.56501351]
[1759573529505,0.4413,4499.9,4499.8,28.16450062]
[1759573530074,0.4413,4499.9,4499.8,28.30584362]
[1759573530903,0.4413,4499.9,4499.8,24.32463263]
[1759573531073,0.4413,4499.9,4499.8,21.90901365]
[1759573532012,0.4413,4499.9,4499.8,24.16722364]
[1759573532312,0.4413,4499.9,4499.8,21.94490265]
[1759573532611,0.4413,4499.9,4499.8,24.16722364]
[1759573532986,0.4413,4499.9,4499.8,25.09300564]
[1759573534034,0.4413,4499.9,4499.8,26.61774964]
[1759573534213,0.4413,4499.9,4499.8,26.35359564]
[1759573535137,0.4413,4499.9,4499.8,26.89035564]
[1759573535338,0.4413,4499.9,4499.8,29.16797462]
[1759573535699,0.012,4499.9,4499.8,29.16797462]
[1759573536134,0.012,4499.9,4499.8,29.53489162]
[1759573536300,0.012,4499.9,4499.8,31.12788551]
[1759573537045,0.012,4499.9,4499.8,31.38956951]
[1759573537203,0.012,4499.9,4499.8,31.12788551]
[1759573537837,0.4453,4499.9,4499.8,26.04978252]
[1759573538033,0.012,4499.9,4499.8,24.45678863]
[1759573538245,0.012,4499.9,4499.8,28.27210351]
[1759573538453,0.4453,4499.9,4499.8,28.27210351]
[1759573539043,0.4453,4499.9,4499.8,24.28888651]
[1759573539344,0.4453,4499.9,4499.8,30.19822051]
[1759573539709,0.4453,4499.9,4499.8,29.51246051]
[1759573540157,0.4453,4499.9,4499.8,30.10698051]
[1759573540444,0.4453,4499.9,4499.8,25.69713952]
[1759573540610,0.4453,4499.9,4499.8,24.10414563]
[1759573540809,0.4453,4499.9,4499.8,26.32646662]
[1759573541140,0.4453,4499.9,4499.8,27.45890762]
[1759573541960,0.012,4499.9,4499.8,27.45890762]
[1759573542515,0.012,4499.9,4499.8,29.05190151]
[1759573543237,0.012,4499.9,4499.8,30.70615051]
[1759573543545,0.012,4499.9,4499.8,30.49646051]
[1759573544249,0.012,4499.9,4499.8,24.28888651]
[1759573544435,0.012,4499.9,4499.8,30.79103251]
[1759573545049,0.012,4499.9,4499.8,22.69589262]
[1759573545228,0.012,4499.9,4499.8,20.41827364]
[1759573554230,0.012,4499.9,4499.8,22.01126753]
[1759573555569,0.012,4499.9,4499.8,30.7356639]
[1759573557266,0.012,4499.9,4499.8,30.4324279]
[1759573557462,0.012,4499.9,4499.8,29.5719279]
[1759573557870,0.012,4499.9,4499.8,28.2246719]
[1759573558654,0.012,4499.9,4499.8,17.57568091]
[1759573558851,0.4598,4499.9,4499.8,18.19595265]
[1759573559043,0.012,4499.9,4499.8,21.79993454]
[1759573559244,0.012,4499.9,4499.8,24.02225553]
[1759573559928,0.012,4499.9,4499.8,22.01126753]
[1759573560331,0.4598,4499.9,4499.8,19.78894654]
[1759573560772,0.4598,4499.9,4499.8,22.01126753]
[1759573560966,0.012,4499.9,4499.8,24.21605653]
[1759573562279,0.012,4499.9,4499.8,21.99373554]
[1759573562776,0.012,4499.9,4499.8,24.21605653]
[1759573562971,0.012,4499.9,4499.8,24.88279653]
[1759573563148,0.012,4499.9,4499.8,25.6204309]
[1759573563350,0.012,4499.9,4499.8,25.1685309]
[1759573564281,0.012,4499.9,4499.8,25.6204309]
[1759573564672,0.012,4499.9,4499.8,26.40902287]
[1759573564984,0.012,4499.9,4499.8,44.06023986]
[1759573565180,0.012,4499.9,4499.8,43.34618586]
[1759573565770,0.012,4499.9,4499.8,22.91646286]
[1759573566078,0.012,4499.9,4499.8,43.23384186]
[1759573566874,0.012,4499.9,4499.8,44.62000486]
[1759573567082,0.012,4499.9,4499.8,44.34384186]
[1759573567991,0.012,4499.9,4499.8,44.62403586]
[1759573568494,0.012,4499.9,4499.8,42.87881298]
[1759573568799,0.012,4499.9,4499.8,41.97374098]
[1759573569099,0.012,4499.9,4499.8,43.43053398]
[1759573570000,0.012,4499.9,4499.8,43.68980898]
[1759573571014,0.012,4499.9,4499.8,48.73992798]
[1759573571933,0.01,4500.9,4499.9,5.25585982]
[1759573572081,0.01,4500.9,4500.4,0.6336]
[1759573572402,0.01,4500.9,4500.8,5.36662723]
[1759573572603,0.01,4500.9,4500.8,34.7238556]
[1759573572813,0.01,4500.9,4500.8,49.96219748]
[1759573573021,0.01,4500.9,4500.8,52.75680546]
[1759573573225,0.01,4500.9,4500.8,52.65368319]
[1759573573386,0.01,4500.9,4500.8,54.44186619]
[1759573573586,0.01,4500.9,4500.8,52.71633619]
[1759573573802,0.01,4500.9,4500.8,53.96657719]
[1759573573998,0.01,4500.9,4500.8,54.60585519]
[1759573574218,0.01,4500.9,4500.8,55.30550812]
[1759573574421,0.01,4500.9,4500.8,53.60567312]
[1759573574633,0.01,4500.9,4500.8,53.40580612]
[1759573574813,0.01,4500.9,4500.8,55.81363212]
[1759573575132,0.01,4500.9,4500.8,57.60545712]
[1759573575285,0.01,4500.9,4500.8,56.01624919]
[1759573575997,0.01,4500.9,4500.8,56.35262719]
[1759573576320,0.01,4500.9,4500.8,56.14475519]
[1759573576842,0.01,4500.9,4500.8,57.73396312]
[1759573576991,0.01,4500.9,4500.8,57.94183512]
[1759573577427,0.01,4500.9,4500.8,56.39222912]
[1759573577930,0.01,4500.9,4500.8,57.94183512]
[1759573578339,0.4478,4502.0,4501.9,2.22128434]
[1759573578498,0.4478,4502.0,4501.9,6.14726876]
[1759573578711,0.4478,4502.0,4501.9,6.77807301]
[1759573578915,0.4478,4502.0,4501.9,20.59588859]
[1759573579119,0.66643045,4502.8,4502.3,2.85468256]
[1759573579352,0.4478,4502.6,4502.4,2.499]
[1759573579667,0.4478,4502.5,4502.4,2.499]
[1759573579814,0.4478,4502.5,4502.4,2.6102]
[1759573580349,1.11423045,4502.5,4502.4,2.6102]
[1759573583386,0.66643045,4502.5,4502.4,3.2438]
[1759573583547,0.01,4502.9,4502.8,0.6336]
[1759573583752,0.01,4502.9,4502.8,3.41733437]
[1759573584078,0.4721,4502.9,4502.8,3.52853437]
[1759573584566,0.01,4502.9,4502.8,3.52853437]
[1759573585136,0.4721,4502.9,4502.8,3.52853437]
[1759573585762,0.4721,4502.9,4502.8,17.7428]
[1759573587839,0.01,4502.9,4502.8,18.02853437]
[1759573589579,0.01,4502.9,4502.8,5.87229637]
[1759573589992,0.01,4502.9,4502.8,20.37229637]
[1759573590482,0.01,4502.9,4502.8,30.01786437]
[1759573590682,0.01,4502.9,4502.8,33.92214771]
[1759573590880,0.4166,4503.4,4503.1,0.6336]
[1759573591099,0.4166,4503.4,4503.3,0.1112]
[1759573591382,2.22041006,4503.7,4503.3,0.39693437]
[1759573591553,0.66630612,4503.5,4503.4,2.78373437]
[1759573591953,2.88680129,4503.5,4503.4,2.6092]
[1759573592261,0.66630612,4503.5,4503.4,2.6092]
[1759573592471,2.88680129,4503.5,4503.4,2.6092]
[1759573592994,1.12290612,4503.5,4503.4,2.6092]
[1759573593194,1.07290612,4503.5,4503.4,2.6092]
[1759573595795,1.07490612,4503.5,4503.4,2.6092]
[1759573596194,1.07490612,4503.5,4503.4,0.1112]
[1759573596362,1.07490612,4503.5,4503.4,2.6092]
[1759573596878,1.07490612,4503.5,4503.4,0.1112]
[1759573597079,1.07490612,4503.5,4503.4,2.6092]
[1759573597509,1.07490612,4503.5,4503.4,0.1112]
[1759573597685,1.07490612,4503.5,4503.4,2.6092]
[1759573597886,0.4586,4503.5,4503.4,2.6092]
[1759573598087,1.12490464,4503.5,4503.4,2.6092]
[1759573599221,1.12490464,4503.5,4503.4,0.1112]
[1759573599428,1.12490464,4503.5,4503.4,2.6092]
[1759573600590,3.34539981,4503.5,4503.4,2.6092]
[1759573601010,3.34539981,4503.5,4503.4,2.6082]
[1759573602507,3.34539981,4503.5,4503.4,0.1112]
[1759573602708,3.34539981,4503.5,4503.4,2.6082]
[1759573603999,0.66830464,4503.5,4503.4,2.89393437]
[1759573604303,1.12490464,4503.5,4503.4,0.39693437]
[1759573604508,3.34539981,4503.5,4503.4,2.6082]
[1759573604696,3.34539981,4503.5,4503.4,0.1112]
[1759573605113,3.34539981,4503.5,4503.4,2.6082]
[1759573605518,3.34539981,4503.5,4503.4,0.1112]
[1759573605718,3.34539981,4503.5,4503.4,2.6082]
[1759573608548,3.34539981,4503.5,4503.4,0.1112]
[1759573608845,3.34539981,4503.5,4503.4,2.6082]
[1759573609729,3.34539981,4503.5,4503.4,0.1112]
[1759573609929,3.9019811,4503.5,4503.4,2.6082]
[1759573611251,3.34539981,4503.5,4503.4,2.6082]
[1759573611439,2.88879981,4503.5,4503.4,2.6082]
[1759573612251,3.33259981,4503.5,4503.4,2.6082]
[1759573613214,2.88879981,4503.5,4503.4,3.40104631]
[1759573613851,3.33259981,4503.5,4503.4,3.40104631]
[1759573614053,2.88879981,4503.5,4503.4,3.40104631]
[1759573616217,3.33259981,4503.5,4503.4,3.40104631]
[1759573616818,2.88879981,4503.5,4503.4,3.40104631]
[1759573617119,3.33259981,4503.5,4503.4,2.6082]
[1759573617548,3.33259981,4503.5,4503.4,3.40104631]
[1759573620758,2.66629517,4503.5,4503.4,3.40104631]
[1759573621062,2.66629517,4503.5,4503.4,2.6082]
[1759573621260,2.66629517,4503.5,4503.3,0.79384631]
[1759573621261,2.22054447,4503.4,4503.3,0.001]
[1759573621445,2.66434447,4503.4,4503.3,2.498]
[1759573621955,2.22054447,4503.4,4503.3,2.498]
[1759573622157,3.05789815,4503.4,4503.3,0.001]
[1759573622354,3.50169815,4503.4,4503.3,2.498]
[1759573626773,2.22069241,4503.1,4502.9,0.001]
[1759573627073,2.22074172,4503.0,4502.9,0.001]
[1759573627228,3.2474737,4503.0,4502.9,0.001]
[1759573627861,3.2474737,4503.0,4502.9,2.498]
[1759573628236,3.2474737,4503.0,4502.9,0.001]
[1759573628461,3.2474737,4503.0,4502.9,2.498]
[1759573628462,3.3586737,4503.0,4502.9,2.498]
[1759573631456,3.3586737,4503.0,4502.9,0.001]
[1759573631647,3.3586737,4503.0,4502.9,2.499]
[1759573632791,4.0252152,4503.0,4502.9,2.499]
[1759573633685,2.22079104,4502.9,4502.8,0.001]
[1759573633848,2.62331256,4502.9,4502.8,0.001]
[1759573634048,3.06711256,4502.9,4502.8,0.001]
[1759573634887,3.17831256,4502.9,4502.8,2.499]
[1759573637026,3.17831256,4502.9,4502.8,0.001]
[1759573637234,3.17831256,4502.9,4502.8,2.499]
[1759573640418,3.17831256,4502.9,4502.8,0.001]
[1759573640716,3.17831256,4502.9,4502.8,2.499]
[1759573641332,2.22098833,4502.5,4502.4,0.001]
[1759573641620,2.44308716,4502.5,4502.4,0.001]
[1759573642712,2.44308716,4502.5,4502.4,2.499]
[1759573645918,2.44308716,4502.5,4502.1,0.1112]
[1759573645919,2.22113633,4502.2,4502.1,0.1112]
[1759573646113,2.22113633,4502.2,4501.5,14.5]
[1759573646114,2.22158043,4501.3,4501.2,0.79284631]
[1759573646384,2.22158481,4501.3,4501.1,0.80284631]
[1759573646630,2.22158043,4501.3,4501.2,15.0857]
[1759573647150,2.22158043,4501.3,4501.2,3.0837]
[1759573647454,2.22158043,4501.3,4501.2,0.5857]
[1759573647654,2.22158043,4501.3,4501.2,2.6092]
[1759573649620,2.22158043,4501.3,4501.2,3.0788]
[1759573653060,2.22158043,4501.3,4501.2,0.5808]
[1759573653266,2.22158043,4501.3,4501.2,3.0798]
[1759573656828,2.22158043,4501.3,4501.2,0.5808]
[1759573657027,2.22162978,4501.2,4501.1,0.011]
[1759573657363,2.22162978,4501.2,4501.1,2.51]
[1759573658661,2.22162978,4501.2,4501.1,0.011]
[1759573658860,2.22162978,4501.2,4501.1,2.51]
[1759573659666,2.22162978,4501.2,4501.1,0.011]
[1759573659867,2.22162978,4501.2,4501.1,2.51]
[1759573660666,2.22162978,4501.2,4501.1,0.011]
[1759573660888,2.22162978,4501.2,4501.1,2.51]
[1759573661686,2.97799991,4501.2,4501.1,2.51]
[1759573663269,2.97799991,4501.2,4501.1,0.011]
[1759573663595,2.97799991,4501.2,4501.1,2.51]
[1759573666778,2.22162978,4501.2,4501.1,2.51]
[1759573668219,2.22162978,4501.2,4501.1,2.9796]
[1759573668383,2.22162978,4501.2,4501.1,2.51]
[1759573672487,2.22162978,4501.2,4501.1,2.9397]
[1759573674028,2.22162978,4501.2,4501.1,2.51]
[1759573674356,2.22162978,4501.2,4501.1,2.9397]
[1759573674837,2.22162978,4501.2,4501.1,3.30284631]
[1759573675222,2.22162978,4501.2,4501.1,2.51]
[1759573675556,2.22162978,4501.2,4501.1,3.30708816]
[1759573676363,2.22162978,4501.2,4501.1,2.51]
[1759573680554,2.22162978,4501.2,4501.1,2.9397]
[1759573680749,2.22162978,4501.2,4501.1,2.51]
[1759573681482,2.88834163,4501.2,4501.1,2.9397]
[1759573681795,0.66671185,4501.2,4501.1,2.51]
[1759573681975,0.1112,4502.1,4501.1,3.59563251]
[1759573682289,0.66663333,4501.6,4501.3,0.79745394]
[1759573682447,2.8880657,4501.6,4501.5,0.1112]
[1759573682650,2.8880657,4501.6,4501.5,0.5409]
[1759573682950,2.8880657,4501.6,4501.5,0.82663437]
[1759573683483,0.002,4502.4,4501.5,0.82663437]
[1759573683683,0.66656816,4502.0,4501.6,3.72586701]
[1759573683890,0.66656816,4502.0,4501.9,0.1112]
[1759573684088,2.88781027,4502.0,4501.9,2.6102]
[1759573684391,2.88781027,4502.0,4501.9,3.0399]
[1759573685290,2.88781027,4502.0,4501.9,2.6102]
[1759573686795,2.88781027,4502.0,4501.9,3.0399]
[1759573690606,2.88781027,4502.0,4501.9,2.6102]
[1759573690907,3.32131027,4502.0,4501.9,2.6102]
[1759573692484,2.88781027,4502.0,4501.9,2.6102]
[1759573695225,2.88781027,4502.0,4501.9,3.0399]
[1759573695683,2.22124211,4502.0,4501.9,3.0399]
[1759573697196,2.22124211,4502.0,4501.9,2.6102]
[1759573698677,2.22124211,4502.0,4501.9,3.0399]
[1759573699323,0.002,4502.4,4501.9,3.32563437]
[1759573699526,2.221235,4502.0,4501.9,2.6102]
[1759573708763,2.221235,4502.0,4501.9,3.0381]
[1759573711128,2.221235,4502.0,4501.9,3.83526701]
[1759573712058,2.221235,4502.0,4501.9,3.0381]
[1759573715156,2.221235,4502.0,4501.9,2.6102]
[1759573715382,2.221235,4502.0,4501.9,3.40689846]
[1759573715876,2.221235,4502.0,4501.9,2.6102]
[1759573732526,0.002,4502.4,4501.9,2.6102]
[1759573732845,2.22113633,4502.2,4502.1,0.79705934]
[1759573733027,2.22113633,4502.2,4502.1,3.29505934]
[1759573733687,2.66473633,4502.2,4502.1,3.29505934]
[1759573735424,2.66473633,4502.2,4502.1,2.498]
[1759573735737,2.66473633,4502.2,4502.1,3.29505934]
[1759573736513,2.66473633,4502.2,4502.1,0.79705934]
[1759573736728,2.66473633,4502.2,4502.1,3.29505934]
[1759573737544,2.22113633,4502.2,4502.1,3.29505934]
[1759573741331,2.66473633,4502.2,4502.1,3.29505934]
[1759573741546,2.66473633,4502.2,4502.1,2.498]
[1759573743942,2.221235,4502.0,4501.9,0.90825934]
[1759573744148,2.664835,4502.0,4501.9,3.40625934]
[1759573744348,2.221235,4502.0,4501.9,3.40625934]
[1759573744963,2.221235,4502.0,4501.9,0.90825934]
[1759573745268,2.664835,4502.0,4501.9,3.40625934]
[1759573748847,2.221235,4502.0,4501.9,3.40625934]
[1759573753008,2.221235,4502.0,4501.9,2.6092]
[1759573754182,2.221235,4502.0,4501.9,0.1112]
[1759573754382,2.221235,4502.0,4501.9,3.4065067]
[1759573754677,2.221235,4502.0,4501.9,3.40651573]
[1759573755448,2.221235,4502.0,4501.9,0.90851573]
[1759573755650,2.221235,4502.0,4501.9,3.40651573]
[1759573762051,2.221235,4502.0,4501.9,0.90851573]
[1759573762258,2.674635,4502.0,4501.9,3.40651573]
[1759573763686,2.221235,4502.0,4501.9,3.40651573]
[1759573768638,2.221235,4502.0,4501.9,2.6092]
[1759573769337,2.221235,4502.0,4501.9,0.1112]
[1759573769729,2.221235,4502.0,4501.9,2.6092]
[1759573771117,2.221235,4502.0,4501.9,3.04]
[1759573772609,2.221235,4502.0,4501.9,2.6092]
[1759573778667,2.221235,4502.0,4501.9,3.04]
[1759573784888,2.221235,4502.0,4501.9,2.6092]
[1759573799445,2.221235,4502.0,4501.9,4.23928705]
[1759573800228,2.221235,4502.0,4501.9,3.80548705]
[1759573800760,2.221235,4502.0,4501.9,2.6092]
[1759573801865,2.221235,4502.0,4501.9,3.043]
[1759573802864,2.221235,4502.0,4501.9,2.6092]
[1759573805432,2.682535,4502.0,4501.9,2.6092]
[1759573806724,3.34910168,4502.0,4501.9,2.6092]
[1759573807260,2.88780168,4502.0,4501.9,2.6092]
[1759573812263,2.88780168,4502.0,4501.9,0.1112]
[1759573812465,3.34910168,4502.0,4501.9,3.40707158]
[1759573813073,3.34910168,4502.0,4501.9,3.29587158]
[1759573814080,3.34910168,4502.0,4501.9,0.79787158]
[1759573814281,2.88780168,4502.0,4501.9,3.29587158]
[1759573814480,3.34910168,4502.0,4501.9,3.29587158]
[1759573814788,3.91724581,4502.0,4501.9,3.29587158]
[1759573814993,3.91724581,4502.0,4501.9,0.79787158]
[1759573815295,3.91724581,4502.0,4501.9,3.29587158]
[1759573818058,3.91724581,4502.0,4501.9,0.79787158]
[1759573818259,3.91724581,4502.0,4501.9,3.29587158]
[1759573819298,3.91724581,4502.0,4501.9,2.498]
[1759573819983,3.34910168,4502.0,4501.9,2.498]
[1759573821903,2.22128434,4501.9,4501.8,0.79887158]
[1759573822078,2.22128434,4501.9,4501.8,2.499]
[1759573822280,2.66818434,4501.9,4501.8,2.499]
[1759573822476,3.39036023,4501.9,4501.8,2.499]
[1759573822675,4.05704837,4501.9,4501.8,2.499]
[1759573823178,4.05704837,4501.9,4501.8,0.001]
[1759573823703,4.05704837,4501.9,4501.8,2.499]
[1759573830084,3.61014837,4501.9,4501.8,2.499]
[1759573831376,2.88797248,4501.9,4501.8,3.25283437]
[1759573832108,2.88797248,4501.9,4501.8,2.499]
[1759573842251,2.88797248,4501.9,4501.8,0.001]
[1759573842446,2.88797248,4501.9,4501.8,2.499]
[1759573844675,2.88797248,4501.9,4501.8,2.9671]
[1759573850074,2.88797248,4501.9,4501.8,2.499]
[1759573850483,2.22138303,4501.7,4501.6,0.4191]
[1759573851179,2.88801192,4501.7,4501.6,0.4191]
[1759573851681,2.88801192,4501.7,4501.6,2.9171]
[1759573853284,0.66662889,4501.7,4501.6,2.9171]